bitfinex/quotes_BTCUSD_20250526
["timestamp","ask_amount","ask_price","bid_price","bid_amount"]
[1748274091326,0.50595363,110340.0,110330.0,0.00855218]
[1748274092001,1.59239457,110340.0,110330.0,0.01055218]
[1748274092198,1.61774335,110340.0,110330.0,0.01055218]
[1748274092424,1.61774335,110340.0,110330.0,0.01355218]
[1748274092624,1.54523032,110340.0,110330.0,0.01355218]
[1748274092746,1.32487183,110340.0,110330.0,0.01355218]
[1748274092947,1.63479183,110340.0,110330.0,0.01355218]
[1748274093183,0.13236134,110340.0,110330.0,0.19533798]
[1748274093387,0.12513719,110340.0,110330.0,0.18627435]
[1748274093586,0.31545826,110340.0,110330.0,0.18627435]
[1748274093920,0.30739594,110340.0,110330.0,0.16503712]
[1748274094122,0.19033765,110330.0,110320.0,0.19128891]
[1748274094287,0.00906388,110320.0,110310.0,0.54943546]
[1748274094492,0.11673612,110330.0,110320.0,0.18129079]
[1748274094694,0.29801047,110330.0,110320.0,0.18129079]
[1748274095129,0.30641507,110330.0,110320.0,0.18129079]
[1748274095306,0.11607701,110330.0,110320.0,0.19035532]
[1748274095629,0.0084046,110330.0,110320.0,0.21848365]
[1748274095810,0.0084046,110330.0,110320.0,0.6365902]
[1748274096019,0.0084046,110330.0,110320.0,1.13101726]
[1748274096226,0.003,110340.0,110330.0,0.6189645]
[1748274096429,0.003,110340.0,110330.0,1.65571156]
[1748274096626,0.04246113,110340.0,110330.0,0.56177435]
[1748274096870,0.03339881,110340.0,110330.0,0.52842434]
[1748274097113,0.03239881,110340.0,110330.0,0.23775291]
[1748274097615,0.03439881,110340.0,110330.0,0.23775291]
[1748274097803,0.03439881,110340.0,110330.0,0.21044694]
[1748274098210,0.03239881,110340.0,110330.0,0.21044694]
[1748274098408,0.03339881,110340.0,110330.0,0.21044694]
[1748274098570,0.03339881,110340.0,110330.0,0.19970096]
[1748274098774,0.03339881,110340.0,110330.0,0.19940104]
[1748274098970,0.003,110340.0,110330.0,0.20846434]
[1748274099176,0.003,110340.0,110330.0,1.1059914]
[1748274099377,0.003,110340.0,110330.0,1.5925734]
[1748274099958,0.003,110340.0,110330.0,1.4424544]
[1748274100162,0.003,110340.0,110330.0,1.3275154]
[1748274101458,0.003,110340.0,110330.0,1.42780694]
[1748274101808,0.003,110340.0,110330.0,1.24333988]
[1748274102054,0.003,110340.0,110330.0,1.73776694]
[1748274102584,0.003,110340.0,110330.0,1.64822138]
[1748274102786,0.003,110340.0,110330.0,1.58712938]
[1748274103006,0.002,110340.0,110330.0,1.58712938]
[1748274103406,0.002,110340.0,110330.0,0.53202033]
[1748274103407,0.0291872,110340.0,110330.0,0.53202033]
[1748274103620,0.01106215,110340.0,110330.0,0.20108396]
[1748274103818,0.01106215,110340.0,110330.0,0.21921056]
[1748274104216,0.02012447,110340.0,110330.0,0.20846466]
[1748274104478,0.01106215,110340.0,110330.0,0.21752788]
[1748274104652,0.02012455,110340.0,110330.0,0.19940153]
[1748274104830,0.01106215,110340.0,110330.0,0.21752821]
[1748274105030,0.29092903,110340.0,110330.0,0.18127435]
[1748274105234,0.32092887,110340.0,110330.0,0.18127435]
[1748274105495,0.19033782,110330.0,110320.0,0.2011013]
[1748274105748,0.09860878,110330.0,110320.0,0.19941977]
[1748274105950,0.00906248,110340.0,110330.0,0.19032571]
[1748274106142,0.12579581,110340.0,110330.0,0.7028797]
[1748274106348,0.30705374,110340.0,110330.0,0.19938926]
[1748274106541,0.11673292,110340.0,110330.0,0.70287954]
[1748274106710,0.01812644,110330.0,110320.0,0.53941896]
[1748274106890,0.28892919,110340.0,110330.0,0.19033798]
[1748274107092,0.28892919,110340.0,110330.0,0.19940153]
[1748274107947,0.00906273,110340.0,110330.0,0.22659152]
[1748274108146,0.00906273,110340.0,110330.0,0.20721757]
[1748274108313,0.2265714,110340.0,110330.0,0.20721757]
[1748274108519,0.2265714,110340.0,110320.0,1.01671785]
[1748274108520,0.02718966,110330.0,110320.0,1.03484618]
[1748274108765,0.01812619,110330.0,110320.0,1.04391014]
[1748274108916,0.00906297,110330.0,110320.0,1.04391014]
[1748274109107,0.01812619,110330.0,110320.0,1.04391014]
[1748274109506,0.02718786,110340.0,110330.0,0.20846458]
[1748274109717,0.21750868,110340.0,110330.0,0.69382842]
[1748274109916,0.20844628,110340.0,110330.0,0.19033798]
[1748274110118,0.20844628,110340.0,110330.0,0.19940153]
[1748274110317,0.20844628,110340.0,110330.0,0.208465]
[1748274110619,0.19938363,110340.0,110330.0,0.19940153]
[1748274110818,0.19938363,110340.0,110330.0,0.2079567]
[1748274111306,0.27080349,110340.0,110330.0,0.00855517]
[1748274112322,0.27080349,110340.0,110320.0,0.21754794]
[1748274112323,0.19033798,110330.0,110320.0,0.21754794]
[1748274112595,0.018128,110320.0,110310.0,1.21349884]
[1748274112763,0.02719205,110320.0,110310.0,1.05416914]
[1748274112972,0.02719196,110320.0,110310.0,1.05416914]
[1748274113190,0.02719196,110320.0,110310.0,1.19912914]
[1748274113403,0.01812784,110320.0,110310.0,1.19912914]
[1748274113622,0.02719196,110320.0,110310.0,1.19912914]
[1748274114060,0.01812669,110330.0,110320.0,0.19941928]
[1748274114275,0.20846467,110330.0,110320.0,0.69384634]
[1748274114490,0.20846467,110330.0,110320.0,0.70291072]
[1748274114624,0.20846467,110330.0,110320.0,0.68478222]
[1748274114870,0.18129079,110320.0,110310.0,0.35205513]
[1748274115092,0.01812849,110320.0,110310.0,1.04291988]
[1748274115310,0.21754826,110320.0,110310.0,1.05198474]
[1748274115534,0.20848414,110320.0,110310.0,1.04291988]
[1748274115754,0.19941961,110320.0,110310.0,1.06304961]
[1748274115971,0.20848414,110320.0,110310.0,1.05398483]
[1748274116196,0.20848414,110320.0,110310.0,1.05398507]
[1748274116413,0.20848414,110320.0,110310.0,0.55955801]
[1748274116629,0.20848414,110320.0,110310.0,1.05198507]
[1748274116841,0.20848414,110320.0,110310.0,0.55755801]
[1748274117474,0.18129079,110320.0,110310.0,0.00905513]
[1748274117681,0.27083635,110320.0,110310.0,0.01105513]
[1748274117893,0.27083635,110320.0,110310.0,0.19236235]
[1748274118095,0.01812841,110320.0,110310.0,1.05398474]
[1748274118325,0.21754761,110320.0,110310.0,1.03636061]
[1748274118576,0.01812809,110320.0,110310.0,0.60343272]
[1748274118805,0.21754745,110320.0,110310.0,0.60343305]
[1748274119015,0.21754745,110320.0,110310.0,1.09786011]
[1748274119192,0.21754745,110320.0,110310.0,1.06756011]
[1748274120059,0.20848398,110320.0,110310.0,1.0272955]
[1748274120264,0.20848398,110320.0,110310.0,1.04542596]
[1748274120643,0.20848398,110320.0,110310.0,1.06305981]
[1748274120998,0.19941969,110320.0,110310.0,0.84549174]
[1748274121221,0.18129079,110320.0,110310.0,0.35106468]
[1748274121421,0.27083635,110320.0,110310.0,0.35106468]
[1748274121621,0.30183635,110320.0,110310.0,0.01106468]
[1748274122029,0.44679635,110320.0,110310.0,0.01106468]
[1748274122233,0.41579635,110320.0,110310.0,0.01106468]
[1748274122621,0.27083635,110320.0,110310.0,0.01106468]
[1748274123231,0.18129079,110320.0,110310.0,0.01106468]
[1748274124299,0.20848381,110320.0,110310.0,1.04492926]
[1748274124862,0.19941928,110320.0,110310.0,1.05399429]
[1748274125093,0.20848373,110320.0,110310.0,1.11739429]
[1748274125676,0.20848373,110320.0,110310.0,1.12645915]
[1748274125835,0.20848373,110320.0,110310.0,1.11739429]
[1748274126034,0.19941961,110320.0,110310.0,0.35106468]
[1748274126247,0.32126517,110320.0,110310.0,0.01106468]
[1748274126466,0.34653517,110320.0,110310.0,0.01106468]
[1748274126888,0.34653517,110320.0,110310.0,0.00249586]
[1748274129557,0.49149517,110320.0,110310.0,0.00249586]
[1748274130022,0.42869517,110320.0,110310.0,0.00249586]
[1748274130436,0.28373517,110320.0,110310.0,0.00249586]
[1748274130655,0.42869517,110320.0,110310.0,0.00249586]
[1748274131032,0.45889517,110320.0,110310.0,0.00249586]
[1748274134137,0.49169517,110320.0,110310.0,0.00249586]
[1748274134565,0.49173517,110320.0,110310.0,0.00249586]
[1748274135443,0.55903612,110320.0,110310.0,0.00249586]
[1748274135903,0.19945544,110300.0,110290.0,0.01330545]
[1748274136162,0.19040702,110290.0,110280.0,0.35074598]
[1748274136611,0.19040702,110290.0,110280.0,0.35850732]
[1748274136817,0.19040702,110290.0,110280.0,0.01345128]
[1748274137020,0.27995258,110290.0,110280.0,0.02202064]
[1748274137238,0.27995258,110290.0,110280.0,0.00856936]
[1748274137717,0.27995258,110290.0,110280.0,0.00956936]
[1748274137927,0.31145258,110290.0,110280.0,0.00956936]
[1748274138342,0.31145258,110290.0,110280.0,0.001]
[1748274138790,0.27995258,110290.0,110280.0,0.001]
[1748274139033,0.27995258,110290.0,110280.0,0.18335654]
[1748274139239,0.27995258,110290.0,110280.0,0.49642706]
[1748274139461,0.27995258,110290.0,110280.0,0.002]
[1748274140337,0.31125258,110290.0,110280.0,0.002]
[1748274140551,0.34165258,110290.0,110280.0,0.002]
[1748274141735,1.34119964,110290.0,110280.0,0.002]
[1748274141942,0.2535242,110280.0,110270.0,0.02750055]
[1748274142298,0.48806976,110280.0,110270.0,0.02750055]
[1748274142757,0.57759127,110280.0,110270.0,0.02750055]
[1748274143174,0.48806976,110280.0,110270.0,0.02750055]
[1748274143412,0.42496976,110280.0,110270.0,0.02764918]
[1748274144045,0.45816976,110280.0,110270.0,0.02764918]
[1748274144808,0.31316976,110280.0,110270.0,0.02764918]
[1748274145009,0.09861281,110280.0,110270.0,1.1323541]
[1748274145210,0.01813375,110290.0,110280.0,0.20855927]
[1748274145526,0.19947385,110290.0,110280.0,0.68485142]
[1748274145740,0.19947385,110290.0,110280.0,0.69391916]
[1748274146075,0.19947385,110290.0,110280.0,0.70298674]
[1748274146282,0.19947385,110290.0,110280.0,0.72641916]
[1748274146634,0.02720018,110290.0,110280.0,0.7445539]
[1748274146839,0.21760728,110290.0,110280.0,0.7746539]
[1748274147068,0.21960728,110290.0,110280.0,0.76558665]
[1748274147270,0.19949161,110280.0,110270.0,0.02764918]
[1748274147476,0.28903717,110280.0,110270.0,0.02764918]
[1748274147679,0.00906716,110280.0,110270.0,1.11511755]
[1748274148006,0.19949161,110280.0,110270.0,0.92467624]
[1748274149158,0.19949161,110280.0,110270.0,0.93322982]
[1748274149754,0.28903717,110280.0,110270.0,0.53062982]
[1748274149953,0.28903717,110280.0,110270.0,0.03620276]
[1748274150427,0.46417717,110280.0,110270.0,0.03620276]
[1748274150633,0.49447717,110280.0,110270.0,0.02764918]
[1748274151930,1.32890423,110280.0,110270.0,0.02764918]
[1748274152153,1.83433129,110280.0,110270.0,0.01510848]
[1748274152377,2.34801213,110280.0,110270.0,0.01510848]
[1748274152591,0.19958209,110230.0,110220.0,0.01431581]
[1748274152817,0.43416765,110230.0,110220.0,0.01431581]
[1748274153061,0.43416765,110230.0,110220.0,0.01446456]
[1748274153267,0.28912765,110230.0,110220.0,0.01446456]
[1748274154269,0.28912765,110230.0,110220.0,0.00014875]
[1748274154832,0.28912765,110230.0,110220.0,0.00114875]
[1748274155039,0.28912765,110230.0,110220.0,0.49657581]
[1748274155271,0.28912765,110230.0,110220.0,0.00214875]
[1748274156863,0.38118813,110230.0,110220.0,0.00214875]
[1748274157058,0.43420765,110230.0,110220.0,0.00214875]
[1748274157504,0.49880765,110230.0,110220.0,0.00214875]
[1748274157705,1.40574774,110230.0,110220.0,0.00114875]
[1748274158383,0.43420765,110230.0,110220.0,0.00014875]
[1748274158587,0.43720765,110230.0,110220.0,0.00014875]
[1748274158985,0.29212765,110230.0,110220.0,0.00014875]
[1748274159148,0.43720765,110230.0,110220.0,0.00014875]
[1748274159345,0.29212765,110230.0,110220.0,0.00014875]
[1748274159551,0.43720765,110230.0,110220.0,0.00014875]
[1748274159749,0.43920765,110230.0,110220.0,0.00014875]
[1748274160394,0.29412765,110230.0,110220.0,0.00014875]
[1748274160566,1.45710422,110230.0,110220.0,0.00014875]
[1748274160780,1.81710422,110230.0,110220.0,0.00014875]
[1748274161841,1.67002422,110230.0,110220.0,0.00014875]
[1748274162051,1.00568765,110230.0,110220.0,0.00014875]
[1748274162201,1.50211471,110230.0,110220.0,0.00014875]
[1748274163004,1.50611471,110230.0,110220.0,0.00014875]
[1748274163216,1.01168765,110230.0,110220.0,0.00014875]
[1748274163416,1.59563622,110230.0,110220.0,0.00014875]
[1748274163619,0.19965455,110190.0,110180.0,0.4022]
[1748274163848,0.19965455,110190.0,110180.0,0.58385589]
[1748274164199,0.19965455,110190.0,110180.0,0.40233475]
[1748274164406,0.19965455,110190.0,110180.0,0.89676181]
[1748274165231,0.19965455,110190.0,110180.0,0.89976181]
[1748274165683,0.19965455,110190.0,110180.0,0.00313475]
[1748274165684,0.36171314,110190.0,110180.0,0.00313475]
[1748274165885,1.4018602,110190.0,110180.0,0.00313475]
[1748274166030,0.90743314,110190.0,110180.0,0.00613475]
[1748274166378,0.53703314,110190.0,110180.0,0.00613475]
[1748274167906,0.53903314,110190.0,110180.0,0.00313475]
[1748274168142,0.61979038,110190.0,110180.0,0.00313475]
[1748274168300,0.53903314,110190.0,110180.0,0.00013475]
[1748274168655,0.54103314,110190.0,110180.0,0.00013475]
[1748274168873,0.55431418,110190.0,110180.0,0.00013475]
[1748274169542,0.55431418,110190.0,110140.0,0.0639]
[1748274169543,0.19972705,110150.0,110140.0,0.0639]
[1748274169757,0.19972705,110150.0,110110.0,0.81902287]
[1748274169758,0.20886173,110120.0,110110.0,0.81902287]
[1748274169971,0.19978081,110120.0,110110.0,1.32731043]
[1748274170181,0.2088614,110120.0,110110.0,1.39004656]
[1748274170611,0.19978073,110120.0,110110.0,1.58076476]
[1748274170829,0.21794207,110120.0,110110.0,1.41972656]
[1748274171029,0.21794207,110120.0,110110.0,1.6565402]
[1748274171223,0.19978073,110120.0,110110.0,1.8472584]
[1748274171431,0.2088614,110120.0,110110.0,1.6565402]
[1748274172056,0.19070031,110120.0,110110.0,1.84725856]
[1748274172272,0.18162005,110120.0,110110.0,1.8472584]
[1748274172474,0.21792267,110130.0,110120.0,0.34]
[1748274172671,0.21792267,110130.0,110120.0,2.28812806]
[1748274172905,0.21792267,110130.0,110120.0,1.54861306]
[1748274173041,0.21792275,110130.0,110120.0,1.3104484]
[1748274173275,0.20884266,110130.0,110120.0,1.2421144]
[1748274173506,0.22700276,110130.0,110120.0,1.2421144]
[1748274173666,0.01815927,110130.0,110120.0,1.44189604]
[1748274173873,0.01815927,110130.0,110120.0,1.45097646]
[1748274174069,0.01815919,110130.0,110120.0,1.45097646]
[1748274174269,0.36182191,110130.0,110120.0,0.04150534]
[1748274174482,0.36182191,110130.0,110120.0,0.01140534]
[1748274174692,0.36182191,110130.0,110120.0,0.01340534]
[1748274175132,0.36182191,110130.0,110120.0,0.003]
[1748274175336,0.22251379,110130.0,110120.0,1.46963603]
[1748274175538,0.22251379,110130.0,110120.0,1.46963594]
[1748274175776,0.19976373,110130.0,110120.0,1.46055511]
[1748274175959,0.19976373,110130.0,110120.0,1.39596594]
[1748274176192,0.19976373,110130.0,110120.0,1.40504661]
[1748274176397,0.19976373,110130.0,110120.0,1.42320753]
[1748274176398,0.01816018,110130.0,110120.0,1.42320753]
[1748274176616,0.19976373,110130.0,110120.0,1.40604661]
[1748274177008,0.19976373,110130.0,110120.0,1.41444502]
[1748274177589,0.19976373,110130.0,110120.0,1.42352561]
[1748274177792,0.19976373,110130.0,110120.0,1.42452561]
[1748274177964,0.19976373,110130.0,110120.0,1.43360611]
[1748274178166,0.19976373,110130.0,110120.0,1.72576502]
[1748274178373,0.19976373,110130.0,110120.0,1.71668435]
[1748274178569,0.19976373,110130.0,110120.0,1.7257651]
[1748274178825,0.19976373,110130.0,110120.0,1.21566347]
[1748274179005,0.19976373,110130.0,110120.0,1.60017847]
[1748274179204,0.19976373,110130.0,110120.0,1.60925939]
[1748274179408,0.19976373,110130.0,110120.0,1.29893939]
[1748274179588,0.19976373,110130.0,110120.0,1.60925939]
[1748274179979,0.19976373,110130.0,110120.0,1.61834022]
[1748274180461,0.18157058,110150.0,110140.0,0.18158707]
[1748274180671,0.1906491,110150.0,110140.0,1.05839348]
[1748274180880,0.02723467,110150.0,110140.0,1.37687675]
[1748274181085,0.19976266,110130.0,110120.0,0.08223036]
[1748274181281,0.19068348,110130.0,110120.0,0.62448822]
[1748274181426,0.19068348,110130.0,110120.0,0.59248822]
[1748274181625,0.19976365,110130.0,110120.0,0.73768822]
[1748274182005,0.19976365,110130.0,110120.0,0.59248822]
[1748274182253,0.19976365,110130.0,110120.0,0.73768822]
[1748274182462,0.19068372,110130.0,110120.0,0.01795152]
[1748274182664,0.28022928,110130.0,110120.0,0.01795152]
[1748274183251,0.28022928,110130.0,110120.0,0.19645152]
[1748274183422,0.19068372,110130.0,110120.0,0.19645152]
[1748274183625,0.19068372,110130.0,110120.0,0.04369841]
[1748274183893,0.18160195,110140.0,110120.0,0.91310711]
[1748274184118,0.21792251,110130.0,110120.0,0.72538005]
[1748274184367,0.21792251,110130.0,110120.0,1.06697047]
[1748274184594,0.19976348,110130.0,110120.0,0.90616341]
[1748274184786,0.19976348,110130.0,110120.0,0.72301841]
[1748274184986,0.20884365,110130.0,110120.0,1.32198135]
[1748274185220,0.20884365,110130.0,110120.0,1.63230135]
[1748274185492,0.19976381,110130.0,110120.0,1.63230144]
[1748274185699,0.19976381,110130.0,110120.0,1.62010637]
[1748274186091,0.19976381,110130.0,110120.0,1.62110637]
[1748274186505,0.19976381,110130.0,110120.0,1.62966639]
[1748274186749,0.19068372,110130.0,110120.0,1.46354639]
[1748274186962,0.29329675,110130.0,110120.0,0.00956002]
[1748274187410,0.39648687,110130.0,110120.0,0.00956002]
[1748274187824,0.39648687,110130.0,110120.0,0.001]
[1748274188695,0.19070088,110120.0,110110.0,0.65081613]
[1748274188853,0.19070088,110120.0,110110.0,0.65938769]
[1748274189274,0.19070088,110120.0,110110.0,0.31889156]
[1748274189462,0.19070088,110120.0,110110.0,0.84461862]
[1748274189692,0.19070088,110120.0,110110.0,0.35019156]
[1748274189893,0.19070088,110120.0,110110.0,0.85862272]
[1748274190036,0.19070088,110120.0,110110.0,0.89052272]
[1748274190418,0.17070088,110120.0,110110.0,0.89052272]
[1748274190846,0.17978171,110120.0,110110.0,1.09032249]
[1748274191045,0.27840786,110120.0,110110.0,0.01057156]
[1748274191992,0.65150786,110120.0,110110.0,0.01057156]
[1748274192430,0.65150786,110120.0,110110.0,0.002]
[1748274192636,0.65150786,110120.0,110110.0,0.004]
[1748274192836,0.31150786,110120.0,110110.0,0.002]
[1748274193036,0.31150786,110120.0,110110.0,0.003]
[1748274193245,1.17623492,110120.0,110110.0,0.003]
[1748274193464,0.18168604,110080.0,110070.0,0.4283828]
[1748274193664,0.19077025,110080.0,110070.0,0.43761654]
[1748274193926,0.19077025,110080.0,110070.0,0.44670142]
[1748274194138,0.01816785,110080.0,110070.0,1.32331269]
[1748274194343,0.18168432,110090.0,110070.0,1.32331269]
[1748274194344,0.19983574,110090.0,110080.0,0.23295414]
[1748274194671,0.19983574,110090.0,110080.0,0.7273812]
[1748274194672,0.21800244,110090.0,110080.0,0.7273812]
[1748274194874,0.20891946,110090.0,110080.0,0.71829723]
[1748274195082,0.19985405,110080.0,110070.0,0.00874102]
[1748274195691,0.28939961,110080.0,110070.0,0.00874102]
[1748274195869,0.28939961,110080.0,110070.0,0.17390102]
[1748274196107,0.19985405,110080.0,110070.0,0.17390102]
[1748274196294,0.19985405,110080.0,110070.0,0.85911575]
[1748274196472,0.19077017,110080.0,110070.0,0.89351575]
[1748274196676,0.19077017,110080.0,110070.0,0.90753641]
[1748274196862,0.19077017,110080.0,110070.0,0.41310935]
[1748274197063,0.19077017,110080.0,110070.0,0.43127935]
[1748274197244,0.19077017,110080.0,110070.0,0.42219439]
[1748274197856,0.19985405,110080.0,110070.0,0.43127918]
[1748274198614,0.02724935,110090.0,110080.0,0.25032208]
[1748274198820,0.00908273,110090.0,110080.0,1.08474839]
[1748274199031,0.01816562,110090.0,110080.0,1.42834839]
[1748274199240,0.01816562,110090.0,110080.0,1.74969139]
[1748274199442,0.26327642,110110.0,110100.0,0.1907356]
[1748274199654,0.28143973,110110.0,110100.0,0.1907356]
[1748274199860,0.28143973,110110.0,110100.0,0.3359756]
[1748274200067,0.28143973,110110.0,110100.0,0.34505808]
[1748274200273,0.09067576,110110.0,110100.0,0.39353255]
[1748274200478,0.29047586,110110.0,110100.0,0.4026147]
[1748274200680,0.28139404,110110.0,110100.0,0.41169677]
[1748274200886,0.0997575,110110.0,110100.0,0.41169677]
[1748274201100,0.13157157,110110.0,110100.0,0.41169677]
[1748274201308,0.13157149,110110.0,110100.0,0.26645677]
[1748274201514,0.4559726,110110.0,110100.0,0.00859224]
[1748274201961,0.4287726,110110.0,110100.0,0.00859224]
[1748274202161,0.4317726,110110.0,110100.0,0.00859224]
[1748274202368,0.4277726,110110.0,110100.0,0.00859224]
[1748274202598,0.4317726,110110.0,110100.0,0.00859224]
[1748274202829,0.02724918,110090.0,110080.0,1.20855922]
[1748274203057,0.21800219,110090.0,110080.0,0.88088844]
[1748274203305,0.19985405,110080.0,110070.0,3.07232936]
[1748274203584,0.19985405,110080.0,110070.0,3.23752936]
[1748274203999,0.19985405,110080.0,110070.0,3.21760936]
[1748274204210,0.19985405,110080.0,110070.0,3.38280936]
[1748274204415,0.19985405,110080.0,110070.0,3.79508057]
[1748274204766,0.19985405,110080.0,110070.0,3.61113351]
[1748274204968,0.19077017,110080.0,110070.0,3.30065368]
[1748274205220,0.01816801,110080.0,110070.0,3.62021856]
[1748274205561,0.28145138,110080.0,110070.0,3.29222335]
[1748274205761,0.3045675,110080.0,110070.0,3.07418113]
[1748274205967,0.3045675,110080.0,110070.0,3.23938113]
[1748274206170,0.18166954,110090.0,110070.0,3.25588368]
[1748274206390,0.19981809,110100.0,110090.0,0.23063607]
[1748274206598,0.19981809,110100.0,110090.0,0.7068966]
[1748274206798,0.00908281,110090.0,110080.0,0.23065389]
[1748274206946,0.01816405,110100.0,110090.0,0.1652]
[1748274207151,0.02724637,110100.0,110090.0,0.50123301]
[1748274207389,0.02724637,110100.0,110090.0,0.5103164]
[1748274207594,0.02724637,110100.0,110090.0,0.52848243]
[1748274207792,0.0090819,110100.0,110090.0,0.52848243]
[1748274207994,0.03632844,110100.0,110090.0,0.52848243]
[1748274208202,0.19075293,110090.0,110070.0,3.58953764]
[1748274208392,0.01816719,110080.0,110070.0,3.58953764]
[1748274208620,0.01816719,110080.0,110070.0,3.59168595]
[1748274208621,0.04541892,110080.0,110070.0,3.59168595]
[1748274208819,0.03633479,110080.0,110070.0,3.59168595]
[1748274209005,0.04541892,110080.0,110070.0,4.11921301]
[1748274209932,0.04541892,110080.0,110070.0,4.11706232]
[1748274210266,0.04541892,110080.0,110070.0,3.80666232]
[1748274210472,0.001,110090.0,110080.0,0.27253794]
[1748274210675,0.001,110090.0,110080.0,1.431822]
[1748274210987,0.001,110090.0,110080.0,1.75081289]
[1748274211210,0.001,110090.0,110080.0,2.33478551]
[1748274211628,0.004,110100.0,110080.0,2.31661733]
[1748274211837,0.002,110100.0,110090.0,2.27544244]
[1748274212170,0.002,110100.0,110090.0,2.29250449]
[1748274212552,0.002,110100.0,110090.0,2.30589613]
[1748274212984,0.002,110100.0,110090.0,2.45117613]
[1748274213535,0.1043271,110110.0,110100.0,0.24159999]
[1748274213744,0.1043271,110110.0,110100.0,0.73602705]
[1748274214323,0.1043271,110110.0,110100.0,0.74461794]
[1748274215039,0.07251303,110110.0,110100.0,0.74461794]
[1748274215241,0.07251303,110110.0,110100.0,0.74561794]
[1748274215242,0.07451303,110110.0,110100.0,0.74561794]
[1748274215617,0.07451303,110110.0,110100.0,0.78905952]
[1748274215741,0.07251303,110110.0,110100.0,0.78905952]
[1748274215936,0.07251303,110110.0,110100.0,0.79005952]
[1748274216141,0.07251303,110110.0,110100.0,0.29563246]
[1748274216346,0.07251303,110110.0,110100.0,0.79005952]
[1748274216549,0.4252582,110110.0,110100.0,0.02133247]
[1748274217199,0.09862672,110110.0,110100.0,0.51575953]
[1748274217429,0.09862672,110110.0,110100.0,0.86249257]
[1748274217430,0.19979961,110110.0,110100.0,0.86249257]
[1748274217641,0.1907182,110110.0,110100.0,0.68083953]
[1748274217847,0.1907182,110110.0,110100.0,0.68382791]
[1748274218053,0.1907182,110110.0,110100.0,0.68282791]
[1748274218254,0.1907182,110110.0,110100.0,0.8735636]
[1748274218471,0.56125679,110110.0,110100.0,0.00859089]
[1748274218732,0.19077017,110080.0,110070.0,2.87239257]
[1748274218944,0.34151573,110080.0,110070.0,2.87239257]
[1748274220005,0.34151573,110080.0,110070.0,2.87439257]
[1748274220006,0.31051573,110080.0,110070.0,2.87439257]
[1748274220410,0.31051573,110080.0,110070.0,2.87739257]
[1748274220826,0.34211573,110080.0,110070.0,2.87739257]
[1748274221239,0.48315455,110080.0,110070.0,2.87539257]
[1748274221440,0.48315455,110080.0,110070.0,2.87639257]
[1748274221857,0.48315455,110080.0,110070.0,2.87439257]
[1748274223170,0.45155455,110080.0,110070.0,2.87439257]
[1748274224778,0.42135455,110080.0,110070.0,3.36781963]
[1748274225138,0.42335455,110080.0,110070.0,3.36781963]
[1748274226042,0.27807455,110080.0,110070.0,3.36681963]
[1748274226251,0.28007455,110080.0,110070.0,3.36681963]
[1748274227183,0.42535455,110080.0,110070.0,3.36681963]
[1748274228036,0.48815455,110080.0,110070.0,2.87239257]
[1748274228212,0.5026954,110080.0,110070.0,2.87239257]
[1748274228434,0.8426954,110080.0,110070.0,2.87239257]
[1748274230217,0.68287455,110080.0,110070.0,2.87239257]
[1748274230418,0.82819455,110080.0,110070.0,2.87239257]
[1748274231073,0.34287455,110080.0,110070.0,2.87239257]
[1748274231278,0.45359455,110080.0,110070.0,3.36681963]
[1748274231512,0.49029455,110080.0,110070.0,3.36781963]
[1748274231703,0.49429455,110080.0,110070.0,3.36781963]
[1748274231903,0.46159455,110080.0,110070.0,3.36781963]
[1748274232120,0.49429455,110080.0,110070.0,3.36781963]
[1748274232323,0.49429455,110080.0,110070.0,2.87339257]
[1748274232908,0.34897455,110080.0,110070.0,2.87339257]
[1748274233309,0.49429455,110080.0,110070.0,2.87339257]
[1748274234191,0.52488288,110080.0,110070.0,2.87339257]
[1748274234755,0.52488288,110080.0,110070.0,2.84601596]
[1748274235065,0.52488288,110080.0,110070.0,3.34044302]
[1748274236443,0.55685655,110080.0,110070.0,3.34044302]
[1748274237257,0.41153655,110080.0,110070.0,3.31915239]
[1748274237373,0.55685655,110080.0,110070.0,3.31915239]
[1748274237798,0.52415655,110080.0,110070.0,3.31915239]
[1748274238018,0.49195655,110080.0,110070.0,3.31915239]
[1748274238229,0.34663655,110080.0,110070.0,3.31915239]
[1748274238451,0.49195655,110080.0,110070.0,3.31915239]
[1748274238868,0.49195655,110080.0,110070.0,0.49542706]
[1748274239535,0.34663655,110080.0,110070.0,0.49542706]
[1748274239964,0.49195655,110080.0,110070.0,0.49542706]
[1748274241734,0.34663655,110080.0,110070.0,0.98985412]
[1748274241944,0.34663655,110080.0,110070.0,0.001]
[1748274242146,0.34663655,110080.0,110070.0,0.49542706]
[1748274242350,0.35996161,110080.0,110070.0,1.73603146]
[1748274242581,0.22602199,110080.0,110070.0,1.77581617]
[1748274242779,0.22602199,110080.0,110070.0,1.7849008]
[1748274242997,0.03525157,110080.0,110070.0,1.78490022]
[1748274243190,0.02616752,110080.0,110070.0,1.78490022]
[1748274243525,0.004,110080.0,110070.0,1.78390022]
[1748274243732,0.24089247,110090.0,110080.0,0.61233794]
[1748274243935,0.0683064,110090.0,110080.0,1.74651206]
[1748274244179,0.05922293,110090.0,110080.0,1.74651206]
[1748274244555,0.05922293,110090.0,110080.0,1.74651238]
[1748274244752,0.05922293,110090.0,110080.0,1.75559627]
[1748274244954,0.24089247,110090.0,110080.0,1.75559635]
[1748274245161,0.24289297,110090.0,110080.0,1.74651247]
[1748274245787,0.24289297,110090.0,110080.0,1.75559627]
[1748274246264,0.22000277,110090.0,110080.0,1.75559627]
[1748274246443,0.22000277,110090.0,110080.0,1.75511199]
[1748274246648,0.22000277,110090.0,110080.0,1.76419579]
[1748274246873,0.60084842,110090.0,110080.0,0.00859952]
[1748274247029,0.57321499,110090.0,110080.0,0.00859952]
[1748274247235,0.57421499,110090.0,110080.0,0.00859952]
[1748274247640,0.18171906,110060.0,110050.0,0.51542]
[1748274247980,0.18171906,110060.0,110050.0,0.37024895]
[1748274248918,0.18171906,110060.0,110050.0,0.87329761]
[1748274249490,0.27126462,110060.0,110050.0,0.87329761]
[1748274249696,0.27126462,110060.0,110050.0,0.84319761]
[1748274249922,0.27126462,110060.0,110050.0,0.84419761]
[1748274250124,0.27126462,110060.0,110050.0,0.83557601]
[1748274250857,0.27126462,110060.0,110050.0,0.83757601]
[1748274251256,0.18171906,110060.0,110050.0,0.86767601]
[1748274251677,0.18171906,110060.0,110050.0,0.83757601]
[1748274252504,0.18171906,110060.0,110050.0,0.84619755]
[1748274253487,0.27126462,110060.0,110050.0,0.84619755]
[1748274253835,0.27126462,110060.0,110050.0,0.83757601]
[1748274254253,0.27126462,110060.0,110050.0,0.86917601]
[1748274255371,0.27126462,110060.0,110050.0,0.83757601]
[1748274258086,0.46790637,110060.0,110050.0,0.00314895]
[1748274258865,0.46790637,110060.0,110050.0,0.00214895]
[1748274259072,0.85790637,110060.0,110050.0,0.00214895]
[1748274259278,0.79807765,110060.0,110050.0,0.00214895]
[1748274259745,0.79807765,110060.0,110050.0,0.00014895]
[1748274259931,0.80007765,110060.0,110050.0,0.00014895]